[Event "Early-Titled-Tuesday-Blitz-July-09-2024"]
[Site "Chess.com"]
[Date "2024.07.09"]
[Round "9"]
[White "pinelone"]
[Black "abelmat"]
[Result "1-0"]
[WhiteElo "2364"]
[BlackElo "2110"]
[TimeControl "180+1"]
[EndTime "9:44:14 PDT"]
[Termination "pinelone won on time"]

1. Nf3 {[%clk 0:02:56.3]} 1... d5 {[%clk 0:01:11.8]} 2. d4 {[%clk 0:02:54.6]}
2... Nf6 {[%clk 0:01:11.3]} 3. c4 {[%clk 0:02:54.6]} 3... e6 {[%clk 0:01:11.3]}
4. g3 {[%clk 0:02:54]} 4... Be7 {[%clk 0:01:11.6]} 5. Bg2 {[%clk 0:02:52.9]}
5... O-O {[%clk 0:01:12.1]} 6. Qc2 {[%clk 0:02:53.4]} 6... dxc4 {[%clk
0:01:12.4]} 7. Qxc4 {[%clk 0:02:53]} 7... a6 {[%clk 0:01:13]} 8. Qc2 {[%clk
0:02:53.3]} 8... b5 {[%clk 0:01:12.8]} 9. Ne5 {[%clk 0:02:51.3]} 9... Ra7 {[%clk
0:01:12.1]} 10. O-O {[%clk 0:02:50.3]} 10... c5 {[%clk 0:01:10.7]} 11. dxc5
{[%clk 0:02:46.1]} 11... b4 {[%clk 0:01:09.7]} 12. Be3 {[%clk 0:02:36.3]} 12...
Rc7 {[%clk 0:01:08]} 13. c6 {[%clk 0:02:35]} 13... Bd6 {[%clk 0:01:02.9]} 14.
Rd1 {[%clk 0:02:26.4]} 14... Qe7 {[%clk 0:00:57.7]} 15. Nc4 {[%clk 0:02:15.6]}
15... Rd8 {[%clk 0:00:48.6]} 16. Bb6 {[%clk 0:02:14.4]} 16... a5 {[%clk
0:00:24.4]} 17. Nxd6 {[%clk 0:01:54.2]} 17... Rxd6 {[%clk 0:00:22.1]} 18. Bxc7
{[%clk 0:01:49.2]} 18... Rxd1+ {[%clk 0:00:17.5]} 19. Qxd1 {[%clk 0:01:49.2]}
19... Qxc7 {[%clk 0:00:18.4]} 20. a3 {[%clk 0:01:46.3]} 20... Nxc6 {[%clk
0:00:16.4]} 21. Bxc6 {[%clk 0:01:44.3]} 21... Qxc6 {[%clk 0:00:13.6]} 22. axb4
{[%clk 0:01:42.2]} 22... h6 {[%clk 0:00:09]} 23. bxa5 {[%clk 0:01:40.7]} 23...
Bb7 {[%clk 0:00:09.1]} 24. f3 {[%clk 0:01:41.1]} 24... Qc5+ {[%clk 0:00:08.4]}
25. Kg2 {[%clk 0:01:40.8]} 25... Ng4 {[%clk 0:00:07.1]} 26. Qd8+ {[%clk
0:01:40]} 26... Kh7 {[%clk 0:00:05.4]} 27. Qb6 {[%clk 0:01:35]} 27... Qc2 {[%clk
0:00:02.1]} 28. Nc3 {[%clk 0:01:30.6]} 1-0

[Event "Early-Titled-Tuesday-Blitz-July-09-2024"]
[Site "Chess.com"]
[Date "2024.07.09"]
[Round "9"]
[White "Antek_Radzimski"]
[Black "Ditman2007"]
[Result "1-0"]
[WhiteElo "2589"]
[BlackElo "2693"]
[TimeControl "180+1"]
[EndTime "9:44:17 PDT"]
[Termination "Antek_Radzimski won by resignation"]

1. e4 {[%clk 0:03:00.9]} 1... e6 {[%clk 0:02:59.6]} 2. Qe2 {[%clk 0:02:58.6]}
2... c5 {[%clk 0:02:58.5]} 3. Nf3 {[%clk 0:02:58.2]} 3... Nc6 {[%clk 0:02:59]}
4. g3 {[%clk 0:02:57.9]} 4... g6 {[%clk 0:02:59.7]} 5. Bg2 {[%clk 0:02:58.5]}
5... Bg7 {[%clk 0:03:00.4]} 6. O-O {[%clk 0:02:59.2]} 6... Nge7 {[%clk 0:03:01]}
7. c3 {[%clk 0:02:59.7]} 7... O-O {[%clk 0:03:01.1]} 8. d4 {[%clk 0:03:00]} 8...
cxd4 {[%clk 0:03:01.5]} 9. cxd4 {[%clk 0:03:00.9]} 9... d5 {[%clk 0:03:02.3]}
10. e5 {[%clk 0:02:50.8]} 10... Qb6 {[%clk 0:03:02.1]} 11. Rd1 {[%clk
0:02:42.8]} 11... Bd7 {[%clk 0:03:01.7]} 12. Nc3 {[%clk 0:02:42.4]} 12... Rfc8
{[%clk 0:03:01]} 13. Be3 {[%clk 0:02:32.7]} 13... Na5 {[%clk 0:02:50.9]} 14.
Rab1 {[%clk 0:02:32.2]} 14... Rc7 {[%clk 0:02:49.3]} 15. h4 {[%clk 0:02:27.6]}
15... Rac8 {[%clk 0:02:48.7]} 16. g4 {[%clk 0:02:27]} 16... Nc4 {[%clk
0:02:46.1]} 17. h5 {[%clk 0:02:18]} 17... Qa5 {[%clk 0:02:41.3]} 18. Bc1 {[%clk
0:02:13.8]} 18... Na3 {[%clk 0:02:25.8]} 19. Ra1 {[%clk 0:01:38.9]} 19... Qa6
{[%clk 0:01:55]} 20. Qe3 {[%clk 0:01:27]} 20... Nc2 {[%clk 0:01:54.1]} 21. Qg5
{[%clk 0:01:24.5]} 21... Nxa1 {[%clk 0:01:54.1]} 22. hxg6 {[%clk 0:01:05.8]}
22... hxg6 {[%clk 0:01:52.7]} 23. Qh4 {[%clk 0:01:04.1]} 23... Nc2 {[%clk
0:01:49]} 24. Bg5 {[%clk 0:00:57.7]} 24... Rxc3 {[%clk 0:01:26.4]} 25. bxc3
{[%clk 0:00:48.8]} 25... Rxc3 {[%clk 0:01:27.3]} 26. Bxe7 {[%clk 0:00:46.6]}
26... Qe2 {[%clk 0:01:27]} 27. Ng5 {[%clk 0:00:39]} 27... Qxd1+ {[%clk
0:00:53.6]} 28. Kh2 {[%clk 0:00:38.3]} 1-0

[Event "Early-Titled-Tuesday-Blitz-July-09-2024"]
[Site "Chess.com"]
[Date "2024.07.09"]
[Round "9"]
[White "Shuvalov"]
[Black "ljuks68"]
[Result "1-0"]
[WhiteElo "2589"]
[BlackElo "2412"]
[TimeControl "180+1"]
[EndTime "9:44:35 PDT"]
[Termination "Shuvalov won on time"]

1. c4 {[%clk 0:03:00.9]} 1... c6 {[%clk 0:02:59.4]} 2. Nf3 {[%clk 0:03:00.2]}
2... d5 {[%clk 0:02:59.3]} 3. g3 {[%clk 0:03:00]} 3... Nf6 {[%clk 0:02:59.3]} 4.
Bg2 {[%clk 0:03:00.1]} 4... Bf5 {[%clk 0:02:59.7]} 5. cxd5 {[%clk 0:02:59.7]}
5... cxd5 {[%clk 0:02:59.8]} 6. Qb3 {[%clk 0:02:59.9]} 6... Qb6 {[%clk 0:02:57]}
7. Qxb6 {[%clk 0:02:59.8]} 7... axb6 {[%clk 0:02:57.4]} 8. Nc3 {[%clk
0:03:00.4]} 8... e6 {[%clk 0:02:52.3]} 9. d3 {[%clk 0:02:59.1]} 9... Bc5 {[%clk
0:02:47.5]} 10. Nb5 {[%clk 0:02:54.4]} 10... O-O {[%clk 0:02:44.3]} 11. O-O
{[%clk 0:02:47.8]} 11... h6 {[%clk 0:02:41.2]} 12. Bf4 {[%clk 0:02:46.9]} 12...
Nc6 {[%clk 0:02:41]} 13. a3 {[%clk 0:02:42.1]} 13... g5 {[%clk 0:02:32.2]} 14.
Bd6 {[%clk 0:02:29.4]} 14... Ra5 {[%clk 0:02:14.4]} 15. Bxf8 {[%clk 0:02:22.5]}
15... Kxf8 {[%clk 0:02:02.4]} 16. Nc3 {[%clk 0:02:14.5]} 16... Ra8 {[%clk
0:02:01]} 17. b4 {[%clk 0:02:12.3]} 17... Be7 {[%clk 0:01:52.8]} 18. Nb5 {[%clk
0:02:12.2]} 18... g4 {[%clk 0:01:28.7]} 19. Nfd4 {[%clk 0:02:11.3]} 19... Nxd4
{[%clk 0:01:23.6]} 20. Nxd4 {[%clk 0:02:12.2]} 20... Bg6 {[%clk 0:01:23.8]} 21.
Nb5 {[%clk 0:02:09.9]} 21... e5 {[%clk 0:00:48.2]} 22. Rac1 {[%clk 0:02:01.5]}
22... e4 {[%clk 0:00:48.4]} 23. d4 {[%clk 0:01:58.9]} 23... Ne8 {[%clk
0:00:39.2]} 24. e3 {[%clk 0:01:55.2]} 24... Bf5 {[%clk 0:00:38.7]} 25. Rc3
{[%clk 0:01:41.2]} 25... Bd7 {[%clk 0:00:37.8]} 26. Nc7 {[%clk 0:01:39.3]} 26...
Nxc7 {[%clk 0:00:28.7]} 27. Rxc7 {[%clk 0:01:40.2]} 27... Bc6 {[%clk 0:00:29]}
28. b5 {[%clk 0:01:36.3]} 28... Bxb5 {[%clk 0:00:20.2]} 29. Rb1 {[%clk
0:01:26.3]} 29... Bc6 {[%clk 0:00:17.1]} 30. Rxb6 {[%clk 0:01:26.3]} 30... Rxa3
{[%clk 0:00:12]} 31. Rc8+ {[%clk 0:01:23.8]} 31... Kg7 {[%clk 0:00:11.9]} 32.
Rb1 {[%clk 0:01:22.7]} 32... Ra2 {[%clk 0:00:10.8]} 33. Bf1 {[%clk 0:01:22.5]}
33... h5 {[%clk 0:00:10.8]} 34. Bb5 {[%clk 0:01:21.3]} 34... Bxb5 {[%clk
0:00:09.2]} 35. Rxb5 {[%clk 0:01:22.2]} 35... Ra1+ {[%clk 0:00:07.2]} 36. Kg2
{[%clk 0:01:22.5]} 36... h4 {[%clk 0:00:07.4]} 37. gxh4 {[%clk 0:01:22.9]} 37...
Bxh4 {[%clk 0:00:07.2]} 38. Rc2 {[%clk 0:01:21.5]} 1-0

[Event "Early-Titled-Tuesday-Blitz-July-09-2024"]
[Site "Chess.com"]
[Date "2024.07.09"]
[Round "9"]
[White "Sasha_Solovev_777"]
[Black "Dr_Pepper18"]
[Result "0-1"]
[WhiteElo "2298"]
[BlackElo "2437"]
[TimeControl "180+1"]
[EndTime "9:44:35 PDT"]
[Termination "Dr_Pepper18 won by resignation"]

1. e4 {[%clk 0:03:00.9]} 1... c6 {[%clk 0:02:53.1]} 2. d4 {[%clk 0:02:59.6]}
2... d5 {[%clk 0:02:52.2]} 3. Nc3 {[%clk 0:02:59.4]} 3... dxe4 {[%clk
0:02:52.1]} 4. Nxe4 {[%clk 0:03:00.2]} 4... Bf5 {[%clk 0:02:52.5]} 5. Ng3 {[%clk
0:02:59.7]} 5... Bg6 {[%clk 0:02:53.2]} 6. Nf3 {[%clk 0:03:00.2]} 6... e6 {[%clk
0:02:53.4]} 7. h4 {[%clk 0:03:00.3]} 7... h6 {[%clk 0:02:53.9]} 8. h5 {[%clk
0:03:00.3]} 8... Bh7 {[%clk 0:02:54.5]} 9. Bd3 {[%clk 0:02:59.6]} 9... Bxd3
{[%clk 0:02:54]} 10. Qxd3 {[%clk 0:03:00.5]} 10... Nf6 {[%clk 0:02:54.6]} 11.
Bd2 {[%clk 0:03:01.1]} 11... c5 {[%clk 0:02:55]} 12. O-O-O {[%clk 0:02:55.1]}
12... Nc6 {[%clk 0:02:51.8]} 13. Bc3 {[%clk 0:02:24.6]} 13... Qd5 {[%clk
0:02:50.9]} 14. Kb1 {[%clk 0:02:21.2]} 14... c4 {[%clk 0:02:46.5]} 15. Qe2
{[%clk 0:02:18.7]} 15... b5 {[%clk 0:02:47.4]} 16. Ne5 {[%clk 0:02:03.9]} 16...
b4 {[%clk 0:02:33.5]} 17. Nxc6 {[%clk 0:01:54.4]} 17... Qxc6 {[%clk 0:02:31.5]}
18. Be1 {[%clk 0:01:53.7]} 18... Be7 {[%clk 0:02:10.2]} 19. f4 {[%clk
0:01:36.5]} 19... c3 {[%clk 0:02:02.5]} 20. b3 {[%clk 0:01:36.1]} 20... a5
{[%clk 0:01:51.2]} 21. f5 {[%clk 0:01:34.3]} 21... a4 {[%clk 0:01:46.8]} 22.
fxe6 {[%clk 0:01:34.2]} 22... fxe6 {[%clk 0:01:47.1]} 23. Bf2 {[%clk 0:01:21.5]}
23... O-O {[%clk 0:01:41.8]} 24. Rhe1 {[%clk 0:01:15.9]} 24... Ra6 {[%clk
0:01:40.8]} 25. Qc4 {[%clk 0:00:25.6]} 25... axb3 {[%clk 0:01:27.7]} 26. cxb3
{[%clk 0:00:21.9]} 26... Qxc4 {[%clk 0:01:13.8]} 27. bxc4 {[%clk 0:00:22.8]}
27... Rfa8 {[%clk 0:01:11.6]} 28. Re2 {[%clk 0:00:22.4]} 28... b3 {[%clk
0:01:12.1]} 29. axb3 {[%clk 0:00:21.5]} 29... Ra1+ {[%clk 0:01:11.7]} 30. Kc2
{[%clk 0:00:22]} 30... R8a2+ {[%clk 0:00:58.2]} 31. Kxc3 {[%clk 0:00:22.3]}
31... Rxe2 {[%clk 0:00:58.5]} 32. Rxa1 {[%clk 0:00:23]} 32... Rxf2 {[%clk
0:00:59]} 33. Ra8+ {[%clk 0:00:22.9]} 33... Kf7 {[%clk 0:00:58.7]} 0-1

[Event "Early-Titled-Tuesday-Blitz-July-09-2024"]
[Site "Chess.com"]
[Date "2024.07.09"]
[Round "9"]
[White "SpeedofLight0"]
[Black "tusplingher"]
[Result "1-0"]
[WhiteElo "3135"]
[BlackElo "2693"]
[TimeControl "180+1"]
[EndTime "9:44:41 PDT"]
[Termination "SpeedofLight0 won by resignation"]

1. d4 {[%clk 0:03:00.9]} 1... Nf6 {[%clk 0:02:59.6]} 2. Nc3 {[%clk 0:03:00.6]}
2... d5 {[%clk 0:02:58.7]} 3. Bf4 {[%clk 0:03:01.3]} 3... a6 {[%clk 0:02:58.1]}
4. e3 {[%clk 0:03:01.5]} 4... e6 {[%clk 0:02:58.4]} 5. g4 {[%clk 0:03:01.8]}
5... Bd6 {[%clk 0:02:58.3]} 6. g5 {[%clk 0:03:01.3]} 6... Nfd7 {[%clk
0:02:55.3]} 7. Nf3 {[%clk 0:02:59.5]} 7... Bxf4 {[%clk 0:02:54.4]} 8. exf4
{[%clk 0:03:00.4]} 8... c5 {[%clk 0:02:50.3]} 9. h4 {[%clk 0:02:58.4]} 9... Nc6
{[%clk 0:02:50.2]} 10. Qd2 {[%clk 0:02:58.4]} 10... cxd4 {[%clk 0:02:46.8]} 11.
Nxd4 {[%clk 0:02:59.3]} 11... Qb6 {[%clk 0:02:44.1]} 12. O-O-O {[%clk
0:02:58.8]} 12... Nxd4 {[%clk 0:02:41.9]} 13. Qxd4 {[%clk 0:02:59.7]} 13... Qxd4
{[%clk 0:02:41.7]} 14. Rxd4 {[%clk 0:03:00.6]} 14... b6 {[%clk 0:02:30.6]} 15.
f5 {[%clk 0:02:59.3]} 15... Bb7 {[%clk 0:02:30.1]} 16. Bh3 {[%clk 0:02:54.1]}
16... e5 {[%clk 0:02:28.2]} 17. Re1 {[%clk 0:02:51.5]} 17... O-O-O {[%clk
0:02:13.9]} 18. Rd2 {[%clk 0:02:45.7]} 18... d4 {[%clk 0:02:13.3]} 19. Ne4
{[%clk 0:02:45.1]} 19... Bxe4 {[%clk 0:02:11.4]} 20. Rxe4 {[%clk 0:02:45.5]}
20... f6 {[%clk 0:02:11]} 21. Rg4 {[%clk 0:02:38.4]} 21... h6 {[%clk 0:01:45]}
22. gxf6 {[%clk 0:02:34.1]} 22... gxf6 {[%clk 0:01:39.9]} 23. Rg6 {[%clk
0:02:34.7]} 23... Kc7 {[%clk 0:01:32.5]} 24. Bf1 {[%clk 0:02:24.7]} 24... b5
{[%clk 0:01:29]} 25. Bd3 {[%clk 0:02:23.7]} 25... Rdf8 {[%clk 0:01:27.3]} 26. f3
{[%clk 0:02:22.6]} 26... Rf7 {[%clk 0:01:20.5]} 27. Rdg2 {[%clk 0:02:21.4]}
27... Kd6 {[%clk 0:01:18]} 28. Rg7 {[%clk 0:02:18.2]} 28... Rhf8 {[%clk
0:01:17]} 29. R2g6 {[%clk 0:02:16.4]} 29... Rxg7 {[%clk 0:01:12.7]} 30. Rxg7
{[%clk 0:02:17.3]} 30... Re8 {[%clk 0:01:03]} 31. Rh7 {[%clk 0:02:03.9]} 31...
Rg8 {[%clk 0:00:53.6]} 32. b4 {[%clk 0:02:03.4]} 32... Rg1+ {[%clk 0:00:48.2]}
33. Kb2 {[%clk 0:02:03.3]} 33... Nb6 {[%clk 0:00:48.2]} 34. Rxh6 {[%clk
0:01:57.9]} 34... Nd5 {[%clk 0:00:47.4]} 35. Be4 {[%clk 0:01:50.6]} 35... Nc3
{[%clk 0:00:42.8]} 36. Rxf6+ {[%clk 0:01:49.9]} 36... Ke7 {[%clk 0:00:39.1]} 37.
Rxa6 {[%clk 0:01:49.7]} 37... Rb1+ {[%clk 0:00:37.7]} 38. Ka3 {[%clk 0:01:50]}
38... Ra1 {[%clk 0:00:32.6]} 39. Re6+ {[%clk 0:01:48]} 39... Kd7 {[%clk
0:00:31.1]} 40. Bc6+ {[%clk 0:01:44.9]} 40... Kc7 {[%clk 0:00:30.8]} 41. f6
{[%clk 0:01:44.1]} 41... Rxa2+ {[%clk 0:00:30]} 42. Kb3 {[%clk 0:01:43.9]} 42...
Ra1 {[%clk 0:00:30.3]} 43. Bxb5 {[%clk 0:01:32.5]} 43... Nxb5 {[%clk 0:00:19.8]}
44. f7 {[%clk 0:01:32.7]} 44... Ra8 {[%clk 0:00:04.1]} 45. Re8 {[%clk
0:01:31.3]} 45... Ra3+ {[%clk 0:00:02.8]} 46. Kb2 {[%clk 0:01:31.8]} 1-0

[Event "Early-Titled-Tuesday-Blitz-July-09-2024"]
[Site "Chess.com"]
[Date "2024.07.09"]
[Round "9"]
[White "Yan_Dyomin2010"]
[Black "Kotofeyca"]
[Result "1-0"]
[WhiteElo "2735"]
[BlackElo "2505"]
[TimeControl "180+1"]
[EndTime "9:44:42 PDT"]
[Termination "Yan_Dyomin2010 won by checkmate"]

1. e4 {[%clk 0:03:00.9]} 1... c5 {[%clk 0:02:59.7]} 2. Nf3 {[%clk 0:03:00.4]}
2... d6 {[%clk 0:03:00.3]} 3. d4 {[%clk 0:02:58.9]} 3... cxd4 {[%clk 0:03:01.2]}
4. Qxd4 {[%clk 0:02:43.1]} 4... Nc6 {[%clk 0:03:00.5]} 5. Bb5 {[%clk 0:02:41.9]}
5... Bd7 {[%clk 0:03:00.5]} 6. Bxc6 {[%clk 0:02:41.4]} 6... Bxc6 {[%clk
0:03:00.7]} 7. Nc3 {[%clk 0:02:42.1]} 7... Nf6 {[%clk 0:03:00.5]} 8. Bg5 {[%clk
0:02:42.5]} 8... e6 {[%clk 0:03:00]} 9. O-O-O {[%clk 0:02:41.7]} 9... Be7 {[%clk
0:03:00.2]} 10. Rhe1 {[%clk 0:02:42]} 10... O-O {[%clk 0:03:00]} 11. Kb1 {[%clk
0:02:42.2]} 11... Qa5 {[%clk 0:02:57.2]} 12. Qd2 {[%clk 0:02:41.6]} 12... Qc7
{[%clk 0:02:40.9]} 13. Nd4 {[%clk 0:02:40.6]} 13... a6 {[%clk 0:02:38.7]} 14. f3
{[%clk 0:02:38.9]} 14... b5 {[%clk 0:02:38.5]} 15. g4 {[%clk 0:02:37.9]} 15...
b4 {[%clk 0:02:33.3]} 16. Nce2 {[%clk 0:02:36.8]} 16... a5 {[%clk 0:02:20.3]}
17. Ng3 {[%clk 0:02:32.8]} 17... Rfb8 {[%clk 0:01:40.8]} 18. Nh5 {[%clk
0:02:30.9]} 18... Bb7 {[%clk 0:01:07.9]} 19. Bxf6 {[%clk 0:02:26.6]} 19... Bxf6
{[%clk 0:01:01.4]} 20. Nxf6+ {[%clk 0:02:26.5]} 20... gxf6 {[%clk 0:01:02.1]}
21. Qh6 {[%clk 0:02:27]} 21... Qe7 {[%clk 0:00:57.4]} 22. Rg1 {[%clk 0:02:23.6]}
22... Kh8 {[%clk 0:00:54.6]} 23. Nf5 {[%clk 0:02:21.4]} 23... exf5 {[%clk
0:00:42.3]} 24. exf5 {[%clk 0:02:18.6]} 24... Bxf3 {[%clk 0:00:20.5]} 25. Rde1
{[%clk 0:02:17.6]} 25... Be4 {[%clk 0:00:20.8]} 26. g5 {[%clk 0:02:14.1]} 26...
Rg8 {[%clk 0:00:19.9]} 27. gxf6 {[%clk 0:02:13.6]} 27... Qe5 {[%clk 0:00:14.1]}
28. Rg7 {[%clk 0:01:17]} 28... Qxf5 {[%clk 0:00:13.4]} 29. Rxf7 {[%clk
0:01:15.1]} 29... Bxc2+ {[%clk 0:00:12.8]} 30. Ka1 {[%clk 0:01:15.7]} 30... Rae8
{[%clk 0:00:11.7]} 31. Rc1 {[%clk 0:01:07.4]} 31... Re6 {[%clk 0:00:10.5]} 32.
Rf8 {[%clk 0:01:02.3]} 32... Re8 {[%clk 0:00:07.8]} 33. Rxe8 {[%clk 0:01:00.3]}
33... Rxe8 {[%clk 0:00:07.2]} 34. Qg7# {[%clk 0:01:00.8]} 1-0

[Event "Early-Titled-Tuesday-Blitz-July-09-2024"]
[Site "Chess.com"]
[Date "2024.07.09"]
[Round "9"]
[White "HelenaWalker2912"]
[Black "patzer-reloaded"]
[Result "1-0"]
[WhiteElo "2500"]
[BlackElo "2347"]
[TimeControl "180+1"]
[EndTime "9:44:52 PDT"]
[Termination "HelenaWalker2912 won by resignation"]

1. d4 {[%clk 0:03:00.9]} 1... Nf6 {[%clk 0:02:49]} 2. c4 {[%clk 0:03:00.7]} 2...
e6 {[%clk 0:02:47.9]} 3. Nc3 {[%clk 0:03:01.2]} 3... Bb4 {[%clk 0:02:47.9]} 4.
g3 {[%clk 0:03:01.3]} 4... O-O {[%clk 0:02:45.6]} 5. Bg2 {[%clk 0:03:01.2]} 5...
d5 {[%clk 0:02:45.1]} 6. Nf3 {[%clk 0:03:01.1]} 6... dxc4 {[%clk 0:02:42]} 7.
O-O {[%clk 0:03:01.6]} 7... Nc6 {[%clk 0:02:38.2]} 8. Qa4 {[%clk 0:03:01.9]}
8... a6 {[%clk 0:02:29.6]} 9. Ne5 {[%clk 0:02:41.8]} 9... Nxe5 {[%clk
0:01:30.2]} 10. dxe5 {[%clk 0:02:42.7]} 10... Bxc3 {[%clk 0:01:28.6]} 11. bxc3
{[%clk 0:02:40.8]} 11... b5 {[%clk 0:01:25.8]} 12. Qc2 {[%clk 0:02:40.7]} 12...
Nd5 {[%clk 0:01:24]} 13. Ba3 {[%clk 0:02:40.7]} 13... Bb7 {[%clk 0:01:18.6]} 14.
Bxf8 {[%clk 0:02:39.9]} 14... Qxf8 {[%clk 0:01:19.5]} 15. a4 {[%clk 0:02:39.4]}
15... c6 {[%clk 0:01:15.4]} 16. Rfd1 {[%clk 0:02:29.9]} 16... Qc5 {[%clk
0:01:14.1]} 17. e4 {[%clk 0:02:17.6]} 17... Nb6 {[%clk 0:01:08.7]} 18. axb5
{[%clk 0:02:15.1]} 18... cxb5 {[%clk 0:01:03.3]} 19. Rd6 {[%clk 0:02:13.1]}
19... Na4 {[%clk 0:00:54.6]} 20. Rad1 {[%clk 0:02:09.2]} 20... h6 {[%clk
0:00:48.5]} 21. Rd8+ {[%clk 0:02:07.9]} 21... Rxd8 {[%clk 0:00:47.8]} 22. Rxd8+
{[%clk 0:02:08.8]} 22... Kh7 {[%clk 0:00:47.9]} 23. Rd7 {[%clk 0:02:06.7]} 23...
Bc6 {[%clk 0:00:37.2]} 24. Rxf7 {[%clk 0:02:05.7]} 24... Qxe5 {[%clk 0:00:35.5]}
25. Ra7 {[%clk 0:01:25.3]} 25... Nxc3 {[%clk 0:00:30.2]} 26. Rxa6 {[%clk
0:01:23.9]} 26... Bxe4 {[%clk 0:00:29.3]} 27. Bxe4+ {[%clk 0:01:17.8]} 27...
Nxe4 {[%clk 0:00:27]} 28. f3 {[%clk 0:01:14.9]} 28... Qd4+ {[%clk 0:00:12.6]}
29. Kf1 {[%clk 0:01:03]} 29... b4 {[%clk 0:00:11.9]} 30. Qxe4+ {[%clk
0:00:57.9]} 30... Qxe4 {[%clk 0:00:11.9]} 31. fxe4 {[%clk 0:00:58.8]} 31... b3
{[%clk 0:00:09.9]} 32. Rb6 {[%clk 0:00:55.7]} 32... Kg6 {[%clk 0:00:09]} 33. Rb4
{[%clk 0:00:52.1]} 33... Kf6 {[%clk 0:00:06.8]} 34. Rxc4 {[%clk 0:00:52.2]}
34... Ke5 {[%clk 0:00:05.8]} 35. Rb4 {[%clk 0:00:51.3]} 1-0

[Event "Early-Titled-Tuesday-Blitz-July-09-2024"]
[Site "Chess.com"]
[Date "2024.07.09"]
[Round "9"]
[White "eljanov"]
[Black "maciek_92"]
[Result "1-0"]
[WhiteElo "2942"]
[BlackElo "2848"]
[TimeControl "180+1"]
[EndTime "9:44:53 PDT"]
[Termination "eljanov won by resignation"]

1. d4 {[%clk 0:03:00.9]} 1... b6 {[%clk 0:03:00.9]} 2. e4 {[%clk 0:02:58.9]}
2... Bb7 {[%clk 0:03:01.5]} 3. Nc3 {[%clk 0:02:58.5]} 3... e6 {[%clk 0:03:01.7]}
4. Nf3 {[%clk 0:02:56.5]} 4... Bb4 {[%clk 0:03:01.7]} 5. Bd3 {[%clk 0:02:55.5]}
5... d5 {[%clk 0:02:50.4]} 6. exd5 {[%clk 0:02:49.1]} 6... Qxd5 {[%clk
0:02:45.8]} 7. O-O {[%clk 0:02:49.2]} 7... Bxc3 {[%clk 0:02:45.9]} 8. bxc3
{[%clk 0:02:50.1]} 8... Nf6 {[%clk 0:02:46.3]} 9. Ba3 {[%clk 0:02:40.7]} 9...
Nbd7 {[%clk 0:02:46.1]} 10. Re1 {[%clk 0:02:27.1]} 10... O-O-O {[%clk
0:02:45.4]} 11. c4 {[%clk 0:02:12.2]} 11... Qa5 {[%clk 0:02:44.1]} 12. Bb2
{[%clk 0:02:06.2]} 12... g5 {[%clk 0:01:45.6]} 13. Nd2 {[%clk 0:01:58.6]} 13...
g4 {[%clk 0:01:42.7]} 14. d5 {[%clk 0:01:56]} 14... exd5 {[%clk 0:01:38]} 15.
Nb3 {[%clk 0:01:56.2]} 15... Qa4 {[%clk 0:01:36.8]} 16. c5 {[%clk 0:01:50.1]}
16... Kb8 {[%clk 0:01:30.8]} 17. Nd4 {[%clk 0:01:28]} 17... c6 {[%clk
0:01:02.3]} 18. cxb6 {[%clk 0:01:24.6]} 18... axb6 {[%clk 0:01:02.4]} 19. Nf5
{[%clk 0:01:17.2]} 19... Rhe8 {[%clk 0:00:38.2]} 20. Qd2 {[%clk 0:01:17.6]}
20... Ne4 {[%clk 0:00:27.7]} 21. Qf4+ {[%clk 0:01:14.5]} 21... Ka7 {[%clk
0:00:28.4]} 22. Nd6 {[%clk 0:01:12.3]} 22... Nxd6 {[%clk 0:00:27.9]} 23. Qxa4+
{[%clk 0:01:11.8]} 23... Kb8 {[%clk 0:00:24.9]} 24. Qf4 {[%clk 0:01:11.2]} 24...
Kc7 {[%clk 0:00:23.3]} 25. Ba3 {[%clk 0:01:06.2]} 25... c5 {[%clk 0:00:23.5]}
26. Bb5 {[%clk 0:01:04.7]} 26... Bc6 {[%clk 0:00:23.4]} 27. Bxc6 {[%clk
0:01:02.7]} 27... Kxc6 {[%clk 0:00:24.3]} 28. Bb2 {[%clk 0:01:02.7]} 28... Nc4
{[%clk 0:00:23.6]} 29. Bg7 {[%clk 0:00:59.5]} 29... Rxe1+ {[%clk 0:00:13.6]} 30.
Rxe1 {[%clk 0:00:59]} 30... Ra8 {[%clk 0:00:14.2]} 31. Qxf7 {[%clk 0:00:57.4]}
31... Rxa2 {[%clk 0:00:13.8]} 32. Re6+ {[%clk 0:00:50.7]} 32... Nd6 {[%clk
0:00:10.1]} 33. Qe7 {[%clk 0:00:50.9]} 33... d4 {[%clk 0:00:09.9]} 34. Qxd6+
{[%clk 0:00:50.8]} 34... Kb5 {[%clk 0:00:10.7]} 35. Qxd7+ {[%clk 0:00:50.7]}
35... Kc4 {[%clk 0:00:11.6]} 36. Re1 {[%clk 0:00:48.5]} 1-0

[Event "Early-Titled-Tuesday-Blitz-July-09-2024"]
[Site "Chess.com"]
[Date "2024.07.09"]
[Round "9"]
[White "Erdnya15"]
[Black "rionelG"]
[Result "1-0"]
[WhiteElo "2596"]
[BlackElo "2435"]
[TimeControl "180+1"]
[EndTime "9:44:56 PDT"]
[Termination "Erdnya15 won by checkmate"]

1. c4 {[%clk 0:03:00.9]} 1... e5 {[%clk 0:02:59]} 2. g3 {[%clk 0:02:59.8]} 2...
Nc6 {[%clk 0:02:58.9]} 3. Bg2 {[%clk 0:02:59.3]} 3... f5 {[%clk 0:02:59.3]} 4.
Nc3 {[%clk 0:02:57.5]} 4... Nf6 {[%clk 0:02:59.2]} 5. e3 {[%clk 0:02:56.8]} 5...
d5 {[%clk 0:02:58.4]} 6. cxd5 {[%clk 0:02:46.9]} 6... Nb4 {[%clk 0:02:58.2]} 7.
d3 {[%clk 0:02:27.7]} 7... c6 {[%clk 0:02:57.2]} 8. Nge2 {[%clk 0:02:21]} 8...
Nfxd5 {[%clk 0:02:50.5]} 9. d4 {[%clk 0:02:11.4]} 9... e4 {[%clk 0:02:44.7]} 10.
O-O {[%clk 0:02:06.9]} 10... Bd6 {[%clk 0:02:23.1]} 11. a3 {[%clk 0:01:34.8]}
11... Nd3 {[%clk 0:02:21.4]} 12. Nxd5 {[%clk 0:01:26.4]} 12... cxd5 {[%clk
0:02:17.8]} 13. Nc3 {[%clk 0:01:06.7]} 13... Be6 {[%clk 0:02:00.3]} 14. Qb3
{[%clk 0:00:45.1]} 14... O-O {[%clk 0:01:40.9]} 15. Rd1 {[%clk 0:00:40]} 15...
b6 {[%clk 0:01:05.6]} 16. Rxd3 {[%clk 0:00:37]} 16... exd3 {[%clk 0:01:03.4]}
17. Bxd5 {[%clk 0:00:37.9]} 17... Bxd5 {[%clk 0:01:01]} 18. Qxd5+ {[%clk
0:00:38.8]} 18... Kh8 {[%clk 0:01:00.7]} 19. Bd2 {[%clk 0:00:39.7]} 19... Be7
{[%clk 0:00:59.2]} 20. Qc4 {[%clk 0:00:37.9]} 20... f4 {[%clk 0:00:44.3]} 21.
exf4 {[%clk 0:00:35.2]} 21... Bf6 {[%clk 0:00:39]} 22. Be3 {[%clk 0:00:32.8]}
22... Qd7 {[%clk 0:00:19.2]} 23. Qxd3 {[%clk 0:00:31]} 23... Rfd8 {[%clk
0:00:19.8]} 24. Rd1 {[%clk 0:00:30.4]} 24... Rac8 {[%clk 0:00:19.3]} 25. Ne4
{[%clk 0:00:28.5]} 25... Qe7 {[%clk 0:00:18.4]} 26. Ng5 {[%clk 0:00:25.9]} 26...
h6 {[%clk 0:00:16.6]} 27. Qh7# {[%clk 0:00:24.9]} 1-0